fUST/lending_fUST_20240205
["ID","MTS","AMOUNT","RATE_DAILY","PERIOD"]
[313293808,1707096640083,-500.0,0.0002492,2]
[313293810,1707096640092,-500.0,0.0002492,2]
[313293812,1707096640101,-593.36089119,0.0002492,2]
[313293814,1707096640110,-500.0,0.0002492,2]
[313293816,1707096640119,-500.0,0.0002492,2]
[313293817,1707096640128,-155.51275519,0.00024926,2]
[313293818,1707096640137,-2475.83370154,0.00024927,2]
[313293832,1707096641414,-856.69629846,0.00024927,2]
[313293833,1707096641424,-555.12,0.00024927,2]
[313293834,1707096641434,-2583.88,0.00024927,2]
[313293835,1707096641445,-5162.07,0.00024927,2]
[313293836,1707096641456,-500.0,0.00024927,2]
[313293837,1707096641466,-500.0,0.00024928,2]
[313293838,1707096641476,-546.31,0.00024928,2]
[313293839,1707096641485,-1463.69,0.00024928,2]
[313293840,1707096641496,-660.39,0.00024928,2]
[313293841,1707096641505,-605.88,0.00024928,2]
[313293842,1707096641514,-568.57,0.00024928,2]
[313293843,1707096641523,-1008.26,0.00024928,2]
[313293844,1707096641534,-695.22,0.00024928,2]
[313293845,1707096641544,-1006.13,0.00024928,2]
[313293846,1707096641554,-500.0,0.00024928,2]
[313293847,1707096641563,-1271.96,0.00024928,2]
[313293848,1707096641573,-603.94545393,0.00024928,2]
[313293882,1707096643365,-535.57454607,0.00024928,2]
[313293884,1707096643375,-10.89415571,0.00024928,2]
[313293895,1707096646192,-0.34021258,0.00024928,2]
[313293896,1707096646203,-423.91799147,0.00024928,2]
[313293897,1707096646222,-361.01764024,0.00024928,2]
[313293898,1707096646231,-663.78,0.00024928,2]
[313293899,1707096646240,-579.75,0.00024929,2]
[313293900,1707096646250,-500.0,0.00024929,2]
[313293901,1707096646259,-771.5,0.00024929,2]
[313293902,1707096646268,-1327.94,0.00024929,2]
[313293903,1707096646277,-2993.09,0.00024929,2]
[313293904,1707096646286,-5110.66,0.00024929,2]
[313293905,1707096646296,-697.77,0.00024929,2]
[313293906,1707096646306,-1158.11,0.00024929,2]
[313293907,1707096646314,-500.0,0.00024929,2]
[313293908,1707096646323,-177.83820946,0.00024929,2]
[313293909,1707096646333,-500.0,0.0002493,2]
[313293910,1707096646342,-240.36272079,0.0002495,4]
[313293917,1707097258710,201.06654747,0.00029,30]
[313293967,1707097841581,-155.02635448,0.00021966,2]
[313293968,1707097841590,-295.6225975,0.00021967,2]
[313293969,1707097841600,-295.92309297,0.00022,4]
[313293970,1707097841609,-14.54780999,0.00022681,2]
[313293983,1707097843427,-140.96519086,0.00022681,2]
[313293984,1707097843437,-1110.98441795,0.00022829,2]
[313293985,1707097843446,-228.1260243,0.00022994,2]
[313293986,1707097843456,-1170.39442972,0.00023113,2]
[313294010,1707097846422,-1730.46482143,0.00023113,2]
[313294011,1707097846431,-507.65036895,0.00023113,2]
[313294012,1707097846441,-5000.0,0.00023113,2]
[313294013,1707097846450,-348.48589862,0.00023113,2]
[313294143,1707099035739,-155.02790502,0.0002096,2]
[313294145,1707099035749,-640.10711401,0.00020961,2]
[313294147,1707099035759,-154.78532925,0.00020962,2]
[313294239,1707099041614,-0.24257577,0.00020962,2]
[313294240,1707099041623,-864.50732423,0.00021013,2]
[313294242,1707099041670,-254.48261276,0.00021013,2]
[313294243,1707099041679,-207.2698236,0.00021482,2]
[313294244,1707099041688,-155.02635448,0.00023008,2]
[313294246,1707099041707,-1760.83,0.00023103,3]
[313294248,1707099041719,-1104.20563716,0.00023103,3]
[313294292,1707099043541,-155.02790502,0.00021012,2]
[313294294,1707099043550,-444.97209498,0.00023103,3]
[313294296,1707099043562,-1808.61226786,0.00023103,3]
[313294316,1707099043571,-2320.34683239,0.00023103,3]
[313294319,1707099043725,-477.81316761,0.00023103,3]
[313294321,1707099043735,-43.31604519,0.0002311,2]
[313294324,1707099043757,-1065.02697475,0.0002311,2]
[313294325,1707099043768,-566.81142176,0.0002311,2]
[313294327,1707099043779,-4867.5530486,0.0002311,2]
[313294347,1707099968387,174.61785725,0.00029,30]
[313294401,1707100232694,-640.10711401,0.00020552,2]
[313294404,1707100232704,-155.02635448,0.00020553,2]
[313294407,1707100232713,-155.02635448,0.00020554,2]
[313294409,1707100232723,-106.46983309,0.00020554,2]
[313294462,1707100238741,-1094.72430843,0.00020554,2]
[313294463,1707100238751,-164.83750517,0.00020566,2]
[313294464,1707100238761,-155.3088614,0.000208,2]
[313294465,1707100238771,-111.24260091,0.0002101,2]
[313294466,1707100238848,-886.97312932,0.0002101,2]
[313294467,1707100238857,-452.34086882,0.00022832,2]
[313294564,1707100241958,-3182.58600186,0.00022831,2]
[313294614,1707100243691,-2344.46290575,0.00022831,2]
[313294616,1707100243799,-14383.71232997,0.00022831,2]
[313294617,1707100243809,-19747.8512228,0.00022831,2]
[313294618,1707100243818,-18675.58644814,0.00022832,2]
[313294619,1707100243827,-1052.40059311,0.00023,2]
[313294621,1707100243836,-153.0,0.00023,2]
[313294623,1707100243845,-1487.97,0.00023091,3]
[313294625,1707100243855,-2364.55,0.00023091,3]
[313294627,1707100243864,-153.0,0.000231,2]
[313294629,1707100243874,-153.0,0.000231,2]
[313294631,1707100243883,-153.0,0.000231,2]
[313294633,1707100243892,-153.7187901,0.000231,2]
[313294635,1707100243901,-153.0,0.000231,2]
[313294636,1707100243911,-153.0,0.000231,2]
[313294637,1707100243921,-216.3526192,0.000231,2]
[313294638,1707100243930,-308.9126686,0.000231,2]
[313294639,1707100243939,-153.0,0.000231,2]
[313294640,1707100243948,-154.5696195,0.000231,2]
[313294641,1707100243957,-156.4587843,0.000231,2]
[313294642,1707100243966,-203.1946369,0.000231,2]
[313294643,1707100243975,-153.0,0.000231,2]
[313294644,1707100243985,-153.0,0.000231,2]
[313294645,1707100243994,-199.78112,0.000231,2]
[313294646,1707100244003,-153.0,0.000231,2]
[313294647,1707100244012,-153.0,0.000231,2]
[313294648,1707100244021,-153.0,0.000231,2]
[313294649,1707100244030,-156.6796091,0.000231,2]
[313294650,1707100244039,-154.6353854,0.000231,2]
[313294651,1707100244048,-154.6189088,0.000231,2]
[313294652,1707100244057,-204.0679475,0.000231,2]
[313294653,1707100244066,-154.4809341,0.000231,2]
[313294654,1707100244075,-153.8033507,0.000231,2]
[313294655,1707100244084,-2837.45,0.00023101,3]
[313294656,1707100244094,-1970.45,0.00023105,3]
[313294657,1707100244103,-352.47608039,0.00023111,2]
[313294658,1707100244112,-155.18498696,0.00023111,2]
[313294659,1707100244121,-155.93796196,0.00023111,2]
[313294660,1707100244130,-155.29180774,0.00023111,2]
[313294661,1707100244139,-155.91695288,0.00023111,2]
[313294662,1707100244147,-155.51314362,0.00023111,2]
[313294663,1707100244157,-155.44094859,0.00023111,2]
[313294664,1707100244166,-155.94861491,0.00023111,2]
[313294665,1707100244175,-175.19977387,0.00023111,2]
[313294666,1707100244183,-244.65796035,0.00023111,2]
[313294667,1707100244193,-20620.10869852,0.00023112,2]
[313294668,1707100244202,-151.0,0.00023112,2]
[313294669,1707100244211,-3647.95258252,0.00023113,2]
[313294670,1707100244224,-1003.56151886,0.00023113,2]
[313294671,1707100244233,-478.67893989,0.00023113,2]
[313294672,1707100244242,-151.0,0.00023113,2]
[313294673,1707100244250,-152.891373,0.00023113,2]
[313294674,1707100244259,-157.51447,0.00023113,2]
[313294675,1707100244268,-153.433701,0.00023113,2]
[313294676,1707100244277,-151.0,0.00023113,2]
[313294677,1707100244286,-151.0,0.00023113,2]
[313294678,1707100244295,-151.0,0.00023113,2]
[313294679,1707100244304,-151.0,0.00023113,2]
[313294680,1707100244312,-151.0,0.00023113,2]
[313294681,1707100244321,-28929.90706805,0.00023115,2]
[313294682,1707100244330,-151.0,0.00023115,2]
[313294683,1707100244339,-151.0,0.00023115,2]
[313294684,1707100244348,-161.121088,0.00023115,2]
[313294685,1707100244356,-151.0,0.00023115,2]
[313294686,1707100244366,-5000.0,0.0002312,2]
[313294687,1707100244374,-22968.78922253,0.0002312,2]
[313294754,1707101432892,-155.02635448,0.00020182,2]
[313294756,1707101432902,-155.02635448,0.00020182,2]
[313294758,1707101432918,-680.53747908,0.00020182,2]
[313294760,1707101432942,-1201.19414152,0.00020183,2]
[313294762,1707101432982,-5850.72782731,0.00020185,2]
[313294765,1707101433005,-225.7290996,0.00020572,2]
[313294766,1707101433036,-24900.0,0.00020754,2]
[313294768,1707101433056,-1145.78795837,0.0002102,2]
[313294770,1707101433071,-200.0,0.00021204,7]
[313294772,1707101433087,-168.651397,0.00021918,2]
[313294774,1707101433104,-2693.82775371,0.00022882,2]
[313294776,1707101433115,-841.92047448,0.0002302,2]
[313294778,1707101433144,-153.0,0.00023041,2]
[313294780,1707101433162,-153.0,0.00023041,2]
[313294782,1707101433181,-153.0,0.00023041,2]
[313294784,1707101433207,-643.02494671,0.00023111,2]
[313294786,1707101433221,-1611.95,0.00023116,3]
[313294787,1707101433239,-4322.92936857,0.00023119,2]
[313294790,1707101433256,-658.31347731,0.00023119,2]
[313294791,1707101433277,-1057.70724688,0.00023119,2]
[313294807,1707101439179,-7404.52950497,0.00023119,2]
[313294808,1707101439194,-2867.34435864,0.0002312,2]
[313294809,1707101439205,-313.04951331,0.0002312,2]
[313294810,1707101439219,-155.02635448,0.0002312,2]
[313294811,1707101439249,-1129.64,0.00023125,3]
[313294812,1707101439278,-1934.35,0.00023125,3]
[313294813,1707101439307,-11069.23800859,0.00023126,2]
[313294814,1707101439344,-6365.60115465,0.00023135,2]
[313294815,1707101439368,-7550.75682474,0.00023137,2]
[313294816,1707101439390,-4213.80485555,0.00023143,2]
[313294817,1707101439414,-199.78112,0.00023178,2]
[313294818,1707101439432,-168.651397,0.000232,2]
[313294819,1707101439444,-280.0,0.00023324,7]
[313294820,1707101439454,-841.92047445,0.00023473,2]
[313294821,1707101439467,-306.0,0.00023641,2]
[313294822,1707101439477,-153.0,0.00023741,2]
[313294823,1707101439495,-243.9943227,0.00023878,2]
[313294824,1707101439515,-199.8298339,0.00023878,2]
[313294825,1707101439555,-841.92047445,0.00023926,2]
[313294826,1707101439579,-4037.43211616,0.00024,2]
[313294827,1707101439600,-3511.59360148,0.00024162,2]
[313294828,1707101439619,-151.0,0.00024162,2]
[313294829,1707101439638,-151.0,0.00024162,2]
[313294830,1707101439654,-151.0,0.00024162,2]
[313294831,1707101439667,-841.92047445,0.00024378,2]
[313294832,1707101439680,-153.0,0.00024384,2]
[313294833,1707101439692,-153.0,0.00024384,2]
[313294834,1707101439713,-168.651397,0.00024482,2]
[313294835,1707101439748,-1591.61476386,0.00024655,2]
[313294836,1707101439781,-366.62902124,0.00024655,2]
[313294837,1707101439809,-429.89956801,0.00024655,2]
[313294838,1707101439820,-4005.92243294,0.00024655,2]
[313294839,1707101439847,-7636.83071699,0.00024655,2]
[313294840,1707101439874,-1270.9546592,0.00024655,2]
[313294841,1707101439910,-10029.20824802,0.00024655,2]
[313294842,1707101439929,-151.0,0.00024655,2]
[313294843,1707101439940,-151.0,0.00024655,2]
[313294844,1707101439952,-151.0,0.00024655,2]
[313294845,1707101439975,-151.0,0.00024655,2]
[313294846,1707101440007,-4077.11157629,0.00024656,2]
[313294847,1707101440036,-505.77001226,0.00024656,2]
[313294848,1707101440059,-637.79368833,0.00024656,2]
[313294849,1707101440080,-500.0,0.00024656,2]
[313294850,1707101440103,-264.07953077,0.00024656,2]
[313294851,1707101440128,-259.47460702,0.00024656,2]
[313294852,1707101440151,-543.47706933,0.00024656,2]
[313294853,1707101440173,-500.0,0.00024656,2]
[313294854,1707101440200,-500.0,0.00024656,2]
[313294855,1707101440217,-500.0,0.00024656,2]
[313294856,1707101440227,-500.0,0.00024656,2]
[313294857,1707101440239,-500.0,0.00024656,2]
[313294858,1707101440252,-500.0,0.00024656,2]
[313294859,1707101440273,-500.0,0.00024656,2]
[313294860,1707101440292,-500.0,0.00024656,2]
[313294861,1707101440314,-500.0,0.00024656,2]
[313294862,1707101440333,-500.0,0.00024656,2]
[313294863,1707101440452,-500.0,0.00024656,2]
[313294864,1707101440463,-500.0,0.00024656,2]
[313294865,1707101440473,-500.0,0.00024656,2]
[313294866,1707101440483,-230.01677439,0.00024656,2]
[313294867,1707101440493,-500.0,0.00024656,2]
[313294868,1707101440522,-500.0,0.00024656,2]
[313294869,1707101440540,-500.0,0.00024656,2]
[313294870,1707101440568,-500.0,0.00024656,2]
[313294871,1707101440592,-500.0,0.00024656,2]
[313294872,1707101440613,-500.0,0.00024656,2]
[313294873,1707101440638,-500.0,0.00024656,2]
[313294874,1707101440667,-151.0,0.00024656,2]
[313294875,1707101440678,-151.0,0.00024656,2]
[313294876,1707101440705,-500.0,0.00024657,2]
[313294877,1707101440716,-523.42647863,0.00024657,2]
[313294878,1707101440727,-513.81438918,0.00024657,2]
[313294879,1707101440737,-395.32082264,0.00024657,2]
[313294880,1707101440755,-509.46003414,0.00024657,2]
[313294881,1707101440775,-510.36,0.00024657,2]
[313294882,1707101440814,-532.69454031,0.00024657,2]
[313294883,1707101440843,-507.45088926,0.00024657,2]
[313294884,1707101440866,-500.0,0.00024657,2]
[313294885,1707101440883,-502.86977847,0.00024657,2]
[313294886,1707101440895,-503.83666981,0.00024657,2]
[313294887,1707101440912,-500.0,0.00024657,2]
[313294888,1707101440928,-394.77344547,0.00024657,2]
[313294889,1707101440946,-506.49619849,0.00024657,2]
[313294890,1707101440961,-516.24759238,0.00024657,2]
[313294891,1707101440971,-499.80880104,0.00024657,2]
[313294892,1707101440981,-500.0,0.00024657,2]
[313294893,1707101440996,-500.0,0.00024657,2]
[313294894,1707101441025,-500.0,0.00024657,2]
[313294896,1707101441050,-500.0,0.00024657,2]
[313294897,1707101441089,-500.0,0.00024657,2]
[313294898,1707101441112,-507.61507292,0.00024657,2]
[313294899,1707101441149,-532.53222116,0.00024657,2]
[313294900,1707101441168,-500.0,0.00024657,2]
[313294901,1707101441185,-505.62144585,0.00024657,2]
[313294902,1707101441208,-503.03165938,0.00024657,2]
[313294903,1707101441232,-517.47619343,0.00024657,2]
[313294904,1707101441252,-522.81838587,0.00024657,2]
[313294905,1707101441273,-500.0,0.00024657,2]
[313294906,1707101441285,-528.49866384,0.00024657,2]
[313294907,1707101441302,-510.85,0.00024657,2]
[313294908,1707101441318,-1000.0,0.00024657,5]
[313294909,1707101441328,-702.8,0.00024657,2]
[313294910,1707101441346,-536.70633796,0.00024657,2]
[313294911,1707101441363,-523.25442462,0.00024657,2]
[313294912,1707101441395,-500.0,0.00024657,2]
[313294913,1707101441422,-500.0,0.00024657,2]
[313294914,1707101441444,-500.0,0.00024657,2]
[313294915,1707101441469,-500.0,0.00024657,2]
[313294916,1707101441490,-547.45677594,0.00024657,2]
[313294917,1707101441509,-526.49409988,0.00024657,2]
[313294918,1707101441520,-500.0,0.00024657,2]
[313294919,1707101441538,-6366.73,0.00024657,2]
[313294920,1707101441554,-500.0,0.00024657,2]
[313294921,1707101441585,-513.48607435,0.00024657,2]
[313294922,1707101441600,-1146.27,0.00024657,2]
[313294923,1707101441613,-500.0,0.00024657,2]
[313294924,1707101441625,-500.0,0.00024657,2]
[313294925,1707101441644,-515.29382618,0.00024657,2]
[313294926,1707101441654,-500.0,0.00024657,2]
[313294927,1707101441678,-944.36,0.00024657,2]
[313294928,1707101441695,-635.89,0.00024657,2]
[313294929,1707101441717,-500.0,0.00024657,2]
[313294930,1707101441742,-1541.15,0.00024657,2]
[313294931,1707101441764,-1702.69,0.00024657,2]
[313294932,1707101441775,-787.19,0.00024657,2]
[313294933,1707101441785,-506.10436904,0.00024657,2]
[313294934,1707101441795,-151.0,0.00024657,2]
[313294935,1707101441816,-151.0,0.00024657,2]
[313294936,1707101441840,-500.0,0.00024657,2]
[313294937,1707101441859,-749.06,0.00024657,2]
[313294938,1707101441884,-151.0,0.00024657,2]
[313294939,1707101441912,-151.0,0.00024657,2]
[313294940,1707101441942,-151.0,0.00024657,2]
[313294941,1707101441954,-151.0,0.00024657,2]
[313294942,1707101441975,-151.0,0.00024657,2]
[313294943,1707101441994,-287.880737,0.00024657,2]
[313294944,1707101442022,-517.47791199,0.00024657,2]
[313294945,1707101442044,-500.0,0.00024657,2]
[313294946,1707101442062,-895.19,0.00024657,2]
[313294947,1707101442072,-353.01240387,0.00024657,2]
[313294948,1707101442082,-806.45,0.00024657,2]
[313294950,1707101442099,-713.01,0.00024657,2]
[313294952,1707101442140,-500.0,0.00024657,2]
[313294953,1707101442159,-3448.47,0.00024657,2]
[313294954,1707101442193,-1170.16,0.00024657,2]
[313294955,1707101442208,-3852.79,0.00024657,2]
[313294956,1707101442237,-519.83112279,0.00024657,2]
[313294957,1707101442254,-500.0,0.00024657,2]
[313294958,1707101442276,-596.82,0.00024657,2]
[313294959,1707101442291,-500.0,0.00024657,2]
[313294960,1707101442312,-5721.22,0.00024657,2]
[313294961,1707101442325,-500.0,0.00024657,2]
[313294962,1707101442334,-840.41,0.00024657,2]
[313294963,1707101442348,-778.7,0.00024657,2]
[313294964,1707101442365,-632.78408327,0.00024657,2]
[313294965,1707101442397,-500.0,0.00024657,2]
[313294966,1707101442416,-2790.12,0.00024657,2]
[313294967,1707101442443,-1310.09,0.00024657,2]
[313294968,1707101442474,-150.82171213,0.00024657,2]
[313294969,1707101442487,-500.0,0.00024657,2]
[313294970,1707101442506,-500.0,0.00024657,2]
[313294971,1707101442520,-514.19897259,0.00024657,2]
[313294972,1707101442538,-500.0,0.00024657,2]
[313294973,1707101442551,-1464.89,0.00024657,2]
[313294974,1707101442566,-500.0,0.00024657,2]
[313294975,1707101442580,-1261.7,0.00024657,2]
[313294976,1707101442597,-153.0,0.00024658,2]
[313294977,1707101442621,-153.0,0.00024658,2]
[313294978,1707101442635,-153.9381817,0.00024658,2]
[313294979,1707101442648,-153.0,0.00024658,2]
[313294980,1707101442665,-153.0,0.00024658,2]
[313294981,1707101442685,-309.2311328,0.00024658,2]
[313294982,1707101442698,-841.92047445,0.00024831,2]
[313294983,1707101442709,-1276.3381256,0.00024859,2]
[313294984,1707101442720,-510.36,0.00024931,2]
[313294985,1707101442748,-500.0,0.00024931,2]
[313294986,1707101442772,-352.09381316,0.00024931,2]
[313294988,1707101442790,-518.67434394,0.00024931,2]
[313294989,1707101442809,-500.0,0.00024931,2]
[313294990,1707101442833,-72.89535429,0.00024931,2]
[313294991,1707101442916,-282.61785084,0.00024931,2]
[313294992,1707101442937,-155.33679487,0.00024931,2]
[313294993,1707101442951,-484.41595688,0.00024931,5]
[313294994,1707101442978,-302.091729,0.00024931,5]
[313294995,1707101442988,-702.8,0.00024931,2]
[313294996,1707101443002,-500.0,0.00024931,2]
[313294997,1707101443016,-151.70105411,0.00024931,2]
[313294998,1707101443039,-110.34162217,0.00024931,2]
[313295000,1707101443786,-2755.76534806,0.00024161,2]
[313295013,1707101447409,-218.1708727,0.00023041,2]
[313295014,1707101447431,-202.2981273,0.00024161,2]
[313295021,1707102582585,1300.0,0.00029,30]
[313295038,1707102632367,-155.02480397,0.00020999,2]
[313295041,1707102632385,-318.09482052,0.00021,2]
[313295117,1707102638692,-1583.49190986,0.00021,2]
[313295242,1707102643762,-542.56072663,0.00021,2]
[313295409,1707103839477,-155.02480397,0.0002097,2]
[313295411,1707103839503,-196.71570861,0.00020971,2]
[313295414,1707103839598,-76.56004771,0.00020971,2]
[313295416,1707103839622,-11426.2796543,0.00021,2]
[313295418,1707103839646,-9883.21937787,0.00021,2]
[313295420,1707103839667,-194.79113983,0.00021,2]
[313295422,1707103839679,-155.38564713,0.00021,2]
[313295424,1707103839698,-155.02480397,0.00021,2]
[313295427,1707103839722,-155.02480397,0.00021,2]
[313295428,1707103839750,-167.1744697,0.00021983,2]
[313295430,1707103839766,-170.8732976,0.00022176,2]
[313295432,1707103839798,-246.112991,0.00022457,2]
[313295434,1707103839817,-200.0,0.00023099,7]
[313295436,1707103839847,-4958.43095833,0.00023113,2]
[313295439,1707103839875,-235.66069544,0.00023119,2]
[313295441,1707103839898,-4707.60252828,0.00023168,2]
[313295444,1707103839908,-820.97801943,0.00023172,2]
[313295446,1707103839924,-5000.0,0.00023172,2]
[313295449,1707103839940,-255.65,0.00024,2]
[313295451,1707103839965,-4037.43211616,0.00024,2]
[313295453,1707103839986,-153.0,0.00024384,2]
[313295454,1707103840007,-313.3863444,0.00024384,2]
[313295457,1707103840040,-451.0193665,0.00024384,2]
[313295459,1707103840063,-153.6380289,0.00024384,2]
[313295461,1707103840085,-153.0,0.00024384,2]
[313295463,1707103840120,-399.2646889,0.00024384,2]
[313295464,1707103840151,-153.0,0.00024384,2]
[313295465,1707103840165,-1406.1,0.0002459,3]
[313295466,1707103840177,-1171.75,0.0002459,3]
[313295467,1707103840197,-976.45,0.0002459,3]
[313295468,1707103840222,-813.71,0.0002459,3]
[313295469,1707103840247,-70114.07540568,0.000246,2]
[313295470,1707103840262,-255.31645884,0.00024655,2]
[313295471,1707103840293,-383.43926243,0.00024655,2]
[313295472,1707103840326,-297.40634212,0.00024655,2]
[313295473,1707103840361,-547.41280014,0.00024655,2]
[313295474,1707103840388,-155.50082775,0.00024655,2]
[313295475,1707103840407,-689.00818768,0.00024655,2]
[313295476,1707103840430,-287.88909355,0.00024655,2]
[313295477,1707103840451,-155.35298721,0.00024655,2]
[313295478,1707103840470,-324.52951704,0.00024655,2]
[313295479,1707103840483,-158.41321449,0.00024656,2]
[313295480,1707103840510,-425.40201231,0.00024656,2]
[313295481,1707103840542,-4497.67760339,0.00024656,2]
[313295482,1707103840560,-404.24078657,0.00024657,2]
[313295483,1707103840593,-512.52113801,0.00024657,2]
[313295484,1707103840608,-511.93962009,0.00024657,2]
[313295485,1707103840635,-500.0,0.00024657,2]
[313295486,1707103840648,-547.94,0.00024657,2]
[313295487,1707103840665,-1481.37,0.00024657,2]
[313295488,1707103840684,-500.0,0.00024657,2]
[313295489,1707103840697,-598.28095836,0.00024657,2]
[313295490,1707103840835,-500.0,0.00024657,2]
[313295491,1707103840851,-500.0,0.00024657,2]
[313295492,1707103840866,-500.0,0.00024657,2]
[313295493,1707103840890,-228.94329766,0.00024657,5]
[313295494,1707103840913,-500.0,0.00024657,2]
[313295495,1707103840935,-500.99634776,0.00024657,2]
[313295496,1707103840956,-500.0,0.00024657,2]
[313295497,1707103840969,-500.0,0.00024657,2]
[313295498,1707103840981,-774.34,0.00024657,2]
[313295499,1707103840996,-8288.4,0.00024657,2]
[313295500,1707103841016,-502.64083218,0.00024657,2]
[313295501,1707103841039,-276.85320625,0.00024657,2]
[313295502,1707103841061,-500.0,0.00024657,2]
[313295504,1707103841076,-500.0,0.00024657,2]
[313295505,1707103841097,-505.0800205,0.00024657,2]
[313295506,1707103841123,-505.06271129,0.00024657,2]
[313295507,1707103841149,-1339.62,0.00024657,2]
[313295508,1707103841178,-500.0,0.00024657,2]
[313295509,1707103841197,-500.0,0.00024657,2]
[313295510,1707103841218,-1242.25,0.00024657,2]
[313295511,1707103841250,-609.4,0.00024657,2]
[313295512,1707103841262,-175.1639211,0.00024657,2]
[313295513,1707103841272,-1092.51,0.00024657,2]
[313295514,1707103841302,-500.0,0.00024657,2]
[313295515,1707103841343,-1858.51,0.00024657,2]
[313295516,1707103841365,-470.2476216,0.00024657,2]
[313295517,1707103841391,-1689.1,0.00024657,2]
[313295518,1707103841433,-681.35,0.00024657,2]
[313295519,1707103841469,-500.0,0.00024657,2]
[313295520,1707103841487,-500.0,0.00024657,2]
[313295521,1707103841500,-828.26,0.00024657,2]
[313295522,1707103841522,-802.99,0.00024657,2]
[313295523,1707103841550,-517.92175697,0.00024657,2]
[313295524,1707103841569,-516.06972802,0.00024657,2]
[313295525,1707103841603,-500.0,0.00024657,2]
[313295526,1707103841642,-2610.11,0.00024657,2]
[313295527,1707103841668,-519.48282434,0.00024657,2]
[313295528,1707103841687,-911.66,0.00024657,2]
[313295529,1707103841709,-770.41,0.00024657,2]
[313295530,1707103841726,-500.45,0.00024657,2]
[313295531,1707103841743,-523.79976214,0.00024657,2]
[313295532,1707103841754,-623.72,0.00024657,2]
[313295533,1707103841768,-1288.07,0.00024657,2]
[313295534,1707103841781,-504.37458685,0.00024657,2]
[313295535,1707103841796,-3858.75,0.00024657,2]
[313295536,1707103841823,-500.0,0.00024657,2]
[313295537,1707103841843,-500.0,0.00024657,2]
[313295538,1707103841870,-500.0,0.00024657,2]
[313295539,1707103841890,-512.98896463,0.00024657,2]
[313295540,1707103841913,-2975.95,0.00024657,2]
[313295542,1707103841940,-6331.12,0.00024657,2]
[313295544,1707103841962,-933.75,0.00024657,2]
[313295546,1707103841991,-500.0,0.00024657,2]
[313295547,1707103842002,-500.0,0.00024657,2]
[313295548,1707103842022,-500.0,0.00024657,2]
[313295549,1707103842047,-1265.17,0.00024657,2]
[313295550,1707103842072,-3000.0,0.000247,4]
[313295552,1707103842107,-3000.0,0.000248,4]
[313295554,1707103842133,-500.0,0.00024807,2]
[313295556,1707103842171,-500.0,0.00024807,2]
[313295557,1707103842194,-636.66853049,0.00024807,2]
[313295558,1707103842211,-500.0,0.00024807,2]
[313295560,1707103842233,-514.88338365,0.00024807,2]
[313295562,1707103842256,-2598.0,0.0002481,4]
[313295564,1707103842272,-1051.71937034,0.0002493,2]
[313295566,1707103842283,-3434.97161703,0.0002493,2]
[313295567,1707103842302,-683.74589582,0.0002493,2]
[313295568,1707103842338,-500.0,0.00024931,2]
[313295569,1707103842367,-547.94,0.00024931,2]
[313295570,1707103842405,-1481.37,0.00024931,2]
[313295571,1707103842426,-500.0,0.00024931,2]
[313295572,1707103842440,-500.0,0.00024931,2]
[313295573,1707103842465,-210.33531036,0.00024931,2]
[313295574,1707103842477,-774.34,0.00024931,2]
[313295576,1707103842494,-8288.4,0.00024931,2]
[313295577,1707103842508,-500.0,0.00024931,2]
[313295579,1707103842522,-500.0,0.00024931,2]
[313295581,1707103842536,-1339.62,0.00024931,2]
[313295583,1707103842561,-550.0929465,0.00024931,2]
[313295585,1707103842582,-500.0,0.00024931,2]
[313295586,1707103842610,-1242.25,0.00024931,2]